Cogmind - Beta 10.2 @@@ ROGUE MODE // 2021.12.07 @ 14:37:03 Player: DaddyWalrus Result: Destroyed by B-86 Titan with Railgun Performance ------------- Evolutions (5) 2500 Regions Visited (12) 2400 Robots Destroyed (53) 265 Value Destroyed (1383) 1383 Prototype IDs (35) 700 Alien Tech Used (0) 0 Bonus (1300) 1300 TOTAL SCORE: 8548 Bonus ------- Aligned with FarCom 300 Met Warlord at Base 500 MAIN.C Attacked Warlord 500 Cogmind --------- Core Integrity 0/1000 Matter 190/300 Energy 52/100 System Corruption 0% Temperature Cool (9) Movement Core (50) Location -4/Proximity Caves Parts ------- > --- POWER (1) -------- (None) > --- PROPULSION (2) --- (None) > --- UTILITY (12) ----- Enhanced Optical Array Advanced Terrain Scan Processor Improved Target Analyzer System Mapper System Shield > --- WEAPON (2) ------- (None) > --- INVENTORY (4) ---- Cooled Antigrav System Fusion Compressor Advanced ECM Suite Experimental Cloaking Device Peak State ------------ > --- POWER ------------ Light Fission Core > --- PROPULSION ------- Cooled Antigrav System Cooled Antigrav System > --- UTILITY ---------- Power Amplifier High-capacity Storage Unit Weight Redist. System Enhanced Optical Array Long-range Sensor Array Advanced Terrain Scan Processor Improved Target Analyzer Experimental Cloaking Device Hacking Suite Advanced Hacking Suite System Mapper System Shield > --- WEAPON ----------- (None) > --- INVENTORY -------- Vortex Chain Reactor Field Propulsion Drive Cooled Impulse Thruster Fusion Compressor Small Storage Unit Advanced ECM Suite Chronowheel Vortex Rail YOLO Cannon [Rating: 87] Favorites ----------- Power Heavy Ion Engine Engine Heavy Ion Engine Power Core Light Fission Core Propulsion Light Treads Treads Light Treads Leg Aluminum Leg Wheel Wheel Hover Unit Cooled Antigrav System Flight Unit Biomechanical Wings Utility Large Storage Unit Device Weight Redist. System Storage Large Storage Unit Processor Enhanced Optical Array Hackware Hacking Suite Protection Layered Light Armor Plating Weapon Assault Rifle Energy Gun Particle Gun Energy Cannon Beam Cannon Ballistic Gun Assault Rifle Ballistic Cannon Flak Cannon Launcher Mini Grenade Launcher Impact Weapon Hammer Slashing Weapon Mining Claw Build | -11 -10 -10 -10 -9 -8 -7 -6 -5 -5 -5 -5 -4 ------- Run | Scr Mat Min Exi Min Mat Fac Fac Fac Upp Upp War Pro Slots Evolved 10 | . . . . . 4 2 2 2 . . . . Power . | . . . . . . . . . . . . . Propulsion . | . . . . . . . . . . . . . Utility 10 | . . . . . 4 2 2 2 . . . . Weapon . | . . . . . . . . . . . . . Parts Attached 113 | 6 25 3 1 1 24 12 8 10 . 2 13 8 Power 8 | 1 2 1 . . 1 1 1 . . . 1 . Engine 5 | 1 1 1 . . 1 . . . . . 1 . Core 3 | . 1 . . . . 1 1 . . . . . Reactor . | . . . . . . . . . . . . . Propulsion 34 | 2 8 . 1 . 7 2 3 3 . . 5 3 Treads 9 | 1 3 . . . 5 . . . . . . . Leg 1 | . 1 . . . . . . . . . . . Wheel 8 | 1 4 . 1 . 2 . . . . . . . Hover 3 | . . . . . . . . . . . 3 . Flight 13 | . . . . . . 2 3 3 . . 2 3 Utility 39 | 1 4 . . . 8 6 3 7 . 2 5 3 Device 18 | . 1 . . . 3 2 2 5 . 1 2 2 Storage 7 | 1 3 . . . 1 1 . . . . 1 . Processor 5 | . . . . . 1 1 1 1 . 1 . . Hackware 4 | . . . . . 2 . . 1 . . 1 . Protection 5 | . . . . . 1 2 . . . . 1 1 Artifact . | . . . . . . . . . . . . . Weapon 32 | 2 11 2 . 1 8 3 1 . . . 2 2 Energy Gun 13 | 1 8 . . . 1 . . . . . 2 1 Energy Cannon 4 | . 1 . . . 2 . . . . . . 1 Ballistic Gun 6 | 1 1 1 . . 2 1 . . . . . . Ballistic Cannon 3 | . . . . . 1 2 . . . . . . Launcher 4 | . . 1 . 1 1 . 1 . . . . . Special Weapon . | . . . . . . . . . . . . . Impact Weapon 1 | . 1 . . . . . . . . . . . Slashing Weapon 1 | . . . . . 1 . . . . . . . Piercing Weapon . | . . . . . . . . . . . . . Special Melee Weapon . | . . . . . . . . . . . . . Unidentified Prototypes 8 | . . . . . 1 . 1 . . . 6 . Parts Lost 31 | . 8 . . . 5 . . 2 1 1 2 12 Power 2 | . 1 . . . . . . . . . 1 . Propulsion 8 | . 3 . . . 1 . . . . . . 4 Utility 11 | . . . . . 2 . . 1 1 . 1 6 Weapon 10 | . 4 . . . 2 . . 1 . 1 . 2 Highest Loss Streak 12 | . 5 . . . 3 . . 1 2 1 2 12 Average Slot Usage (%) 93 | . 91 100 100 100 96 98 93 91 82 83 84 71 Engine 8 | . 11 14 14 14 9 5 . . . . . . Core 1 | . 2 . . . . 1 6 5 5 5 4 . Treads 9 | . 14 14 10 . 10 11 . . . . . . Wheel 7 | . 13 14 17 28 6 . . . . . . . Flight 1 | . . . . . . 3 13 9 5 5 3 1 Device 6 | . . . . . 4 8 18 24 23 23 21 11 Storage 18 | . 21 28 28 28 22 19 6 5 5 5 5 5 Processor 7 | . . . . . 8 8 19 14 11 13 17 17 Hackware 10 | . . . . . 15 15 13 11 17 17 19 23 Protection 2 | . . . . . 2 6 6 5 5 5 3 . Energy Gun 4 | . 16 . . . 2 . . . . . 1 . Energy Cannon 3 | . 2 14 14 2 2 . . . . . . . Ballistic Gun 6 | . 7 12 14 14 5 5 6 4 . . . . Ballistic Cannon 2 | . . . . . 4 6 . . . . . . Launcher 1 | . . 1 . 12 1 . 2 5 5 3 . . Naked Turns . | . . . . . . . . . . . . . Heaviest Build 71 | 10 42 42 40 40 65 71 22 26 23 25 47 57 Greatest Support 66 | 10 40 10 26 26 40 46 22 26 26 26 66 40 Greatest Overweight (x) 5 | 2 4 4 3 1 3 2 1 2 . . 1 5 Average Overweight (x) 1 | . 2 3 2 1 1 . . . . . . . Largest Inventory Capacity 22 | 6 16 16 16 16 22 22 6 6 6 6 12 12 Average Capacity 14 | 5 12 16 16 16 18 19 6 6 6 6 7 11 Most Carried 22 | 6 16 16 16 16 22 22 6 6 6 6 12 11 Average Carried 14 | 3 11 15 15 16 18 18 5 5 6 6 7 9 Final Capacity 22 | 6 16 16 16 16 22 6 6 6 6 6 12 4 Final Carried 22 | 6 16 16 16 16 22 6 6 6 6 6 12 4 Class Distribution -------------------- 46% | Mutant 22% | Hauler-Mutant 20% | Hacker-Mutant 9% | Hacker-Scout Dominant Class ---------------- Mutant | -10/Materials Mutant | -10/Mines Mutant | -10/Exiles Mutant | -9/Mines Hauler-Mutant | -8/Materials Hauler-Mutant | -7/Factory Hacker-Scout | -6/Factory Hacker-Scout | -5/Factory Hacker-Mutant | -5/Upper Caves Hacker-Mutant | -5/Upper Caves Hacker-Mutant | -5/Warlord Hacker-Mutant | -4/Proximity Caves Resources | -11 -10 -10 -10 -9 -8 -7 -6 -5 -5 -5 -5 -4 ----------- Run | Scr Mat Min Exi Min Mat Fac Fac Fac Upp Upp War Pro Matter Collected 2255 | 261 455 61 2 20 648 205 208 . . 150 245 . Remotely . | . . . . . . . . . . . . . Salvage Created 1945 | 62 753 68 . . 857 205 . . . . . . Parts 102 | 1 43 7 . . 42 9 . . . . . . Haulers Intercepted . | . . . . . . . . . . . . . Recyclers Shooed 7 | . 4 . . . 2 1 . . . . . . Parts Field Recycled . | . . . . . . . . . . . . . Retrieved Matter . | . . . . . . . . . . . . . Parts Self-Destructed 56 | . . . . . . . . . . 5 51 . Prevented 7 | . . . . . . . . . . 2 5 . Kills | -11 -10 -10 -10 -9 -8 -7 -6 -5 -5 -5 -5 -4 ------- Run | Scr Mat Min Exi Min Mat Fac Fac Fac Upp Upp War Pro Combat Hostiles Destroyed 33 | . 11 3 . . 17 2 . . . . . . Melee 3 | . 1 . . . 2 . . . . . . . Guns 14 | . 9 . . . 5 . . . . . . . Cannons 6 | . 1 . . . 3 2 . . . . . . AOE 10 | . . 3 . . 7 . . . . . . . Classes Destroyed 11 | 1 4 1 . . 4 1 . . . . . . Worker 4 | . 2 . . . 2 . . . . . . . Builder 3 | . . . . . 3 . . . . . . . Tunneler 1 | . . . . . 1 . . . . . . . Recycler 8 | 1 2 1 . . 2 2 . . . . . . Operator 1 | . 1 . . . . . . . . . . . Watcher 3 | . 1 . . . 2 . . . . . . . Swarmer 7 | . . 3 . . 4 . . . . . . . Grunt 17 | . 11 . . . 6 . . . . . . . Sentry 7 | . . . . . 6 1 . . . . . . Hunter 1 | . . . . . 1 . . . . . . . Programmer 1 | . . . . . . 1 . . . . . . Best Kill Streak 7 | 1 4 3 . . 7 2 . . . . . . Combat Bots Only 4 | . 2 3 . . 4 1 . . . . . . Max Kills in Single Turn 4 | 1 1 2 . . 4 1 . . . . . . Gunslinging . | . . . . . . . . . . . . . Exploded 2 | . . 2 . . 2 . . . . . . . Melee 1 | . 1 . . . 1 . . . . . . . Uniques/NPCs Destroyed . | . . . . . . . . . . . . . Combat | -11 -10 -10 -10 -9 -8 -7 -6 -5 -5 -5 -5 -4 -------- Run | Scr Mat Min Exi Min Mat Fac Fac Fac Upp Upp War Pro Damage Taken 5223 | 26 925 46 . . 951 213 . 608 35 173 565 1681 Core 1432 | 13 164 . . . 204 32 . 70 . 116 191 642 Absorbed by Shields 142 | . . . . . 142 . . . . . . . Core Remaining (%) 76 | 94 . . . 29 62 95 100 . . . . . Volleys Fired 184 | 1 68 7 . . 58 22 5 19 . . 1 3 Largest 2 | 2 2 2 . . 2 2 1 1 . . 1 1 Hottest 107 | 60 105 90 . . 107 88 23 30 . . 45 45 Shots Fired 317 | 2 122 13 . . 111 41 5 19 . . 1 3 Gun 192 | 2 106 4 . . 53 7 5 11 . . 1 3 Cannon 106 | . 16 7 . . 49 34 . . . . . . Launcher 19 | . . 2 . . 9 . . 8 . . . . Special . | . . . . . . . . . . . . . Kinetic 174 | 1 37 4 . . 75 41 5 11 . . . . Thermal 94 | . 60 7 . . 27 . . . . . . . Explosive 19 | . . 2 . . 9 . . 8 . . . . Electromagnetic 26 | 1 25 . . . . . . . . . . . Entropic 4 | . . . . . . . . . . . 1 3 Robot Hit Streak 13 | 2 11 2 . . 13 13 1 4 . . . 1 Robot Miss Streak 11 | . 3 3 . . 5 6 1 11 . . . 1 Penetration Max . | . . . . . . . . . . . . . Secondary Targets 1 | . 1 . . . . . . . . . . . Max Gunslinging Chain 1 | . 1 . . . . . . . . . . . Shots Hit Robots 235 | 2 85 4 . . 99 37 3 3 . . . 2 Core Hits 120 | 2 31 8 . . 56 19 1 2 . . . 1 Critical Hits 3 | . . . . . 1 . . . . . . 2 Critical Kills 1 | . . . . . 1 . . . . . . . Critical Parts Destroyed . | . . . . . . . . . . . . . Melee Attacks 23 | . 5 . . . 18 . . . . . . . Impact 5 | . 5 . . . . . . . . . . . Slashing 18 | . . . . . 18 . . . . . . . Piercing . | . . . . . . . . . . . . . Sneak Attacks . | . . . . . . . . . . . . . Combat Hostiles . | . . . . . . . . . . . . . Follow-up Attacks . | . . . . . . . . . . . . . Damage Inflicted 4253 | 61 1121 190 . . 2310 367 44 83 . . . 77 Guns 1878 | 19 904 43 . . 655 93 44 43 . . . 77 Cannons 1087 | . 162 35 . . 616 274 . . . . . . Explosions 971 | 42 . 112 . . 777 . . 40 . . . . Melee 317 | . 55 . . . 262 . . . . . . . Ramming . | . . . . . . . . . . . . . Kinetic 1589 | 7 199 43 . . 886 367 44 43 . . . . Thermal 1114 | 42 560 127 . . 385 . . . . . . . Explosive 837 | . . 20 . . 777 . . 40 . . . . Electromagnetic 319 | 12 307 . . . . . . . . . . . Impact 55 | . 55 . . . . . . . . . . . Slashing 262 | . . . . . 262 . . . . . . . Piercing . | . . . . . . . . . . . . . Entropic 77 | . . . . . . . . . . . . 77 Highest Corruption 4 | . . . . . . 2 . 4 4 4 4 . Average Corruption 3 | . . . . . . 1 . 4 4 4 4 . Corruption Purged . | . . . . . . . . . . . . . Effects 12 | . . . . . . 1 . 5 2 3 1 . Message Errors 3 | . . . . . . . . 1 1 1 . . Matter Fused 2 | . . . . . . . . 1 . 1 . . Heat Flow Errors 1 | . . . . . . 1 . . . . . . Energy Discharges 1 | . . . . . . . . . 1 . . . Parts Rejected 1 | . . . . . . . . 1 . . . . Data Loss (minor) 3 | . . . . . . . . 1 . 1 1 . Targeting Errors 1 | . . . . . . . . 1 . . . . Overload Shots . | . . . . . . . . . . . . . Overflow Damage 2 | . . . . . 2 . . . . . . . Projectiles . | . . . . . . . . . . . . . Explosions . | . . . . . . . . . . . . . Melee 2 | . . . . . 2 . . . . . . . Knockbacks 30 | . . . . . 19 11 . . . . . . Impact . | . . . . . . . . . . . . . Kinetic 26 | . . . . . 15 11 . . . . . . Secondary 4 | . . . . . 4 . . . . . . . Self-Inflicted Damage 26 | 26 . . . . . . . . . . . . Shots 1 | 1 . . . . . . . . . . . . Rammed . | . . . . . . . . . . . . . Targets Rammed . | . . . . . . . . . . . . . Kicked . | . . . . . . . . . . . . . Crushed . | . . . . . . . . . . . . . Highest Temperature 238 | 32 156 80 . . 126 238 . . . . . 3 Average Temperature 46 | 22 56 33 . . 24 65 . . . . . 3 Received Heat Transfer 1449 | . 489 . . . 495 12 . 57 . 9 90 297 Siege Activations . | . . . . . . . . . . . . . Robots Corrupted . | . . . . . . . . . . . . . Combat Hostiles . | . . . . . . . . . . . . . Parts Fried 2 | . 2 . . . . . . . . . . . Impact Corruptions . | . . . . . . . . . . . . . Robots Melted . | . . . . . . . . . . . . . Combat Hostiles . | . . . . . . . . . . . . . Parts Melted . | . . . . . . . . . . . . . Heat Transferred 2290 | 50 1252 174 . . 814 . . . . . . . Parts Sabotaged . | . . . . . . . . . . . . . Parts Stolen . | . . . . . . . . . . . . . Parts Stripped . | . . . . . . . . . . . . . Power Chain Reactions 1 | 1 . . . . . . . . . . . . Missiles Intercepted . | . . . . . . . . . . . . . Alert | -11 -10 -10 -10 -9 -8 -7 -6 -5 -5 -5 -5 -4 ------- Run | Scr Mat Min Exi Min Mat Fac Fac Fac Upp Upp War Pro Peak Influence 352 | 5 188 115 . . 314 352 140 225 . . . . Initial 98 | . 3 10 . . . 72 98 68 . . . . Average 79 | 1 56 78 . . 66 169 124 118 . . . . Maximum Alert Level 1 | . . . . . 1 1 . 1 . . . . Low Security (%) 92 | 100 100 100 . 100 91 68 100 86 . . . . Level 1 7 | . . . . . 8 31 . 13 . . . . Level 2 . | . . . . . . . . . . . . . Level 3 . | . . . . . . . . . . . . . Level 4 . | . . . . . . . . . . . . . Level 5 . | . . . . . . . . . . . . . High Security . | . . . . . . . . . . . . . Max Security . | . . . . . . . . . . . . . Squads Dispatched 12 | . 3 . . . 3 2 2 2 . . . . Investigation 7 | . 2 . . . 3 1 1 . . . . . Extermination 2 | . . . . . . 1 1 . . . . . Reinforcement 3 | . 1 . . . . . . 2 . . . . Assault . | . . . . . . . . . . . . . Garrison . | . . . . . . . . . . . . . Intercept . | . . . . . . . . . . . . . Construction Impeded . | . . . . . . . . . . . . . Haulers Reinforced 1 | . . . . . . . . 1 . . . . Stealth | -11 -10 -10 -10 -9 -8 -7 -6 -5 -5 -5 -5 -4 --------- Run | Scr Mat Min Exi Min Mat Fac Fac Fac Upp Upp War Pro Distress Signals 11 | . 1 . . . 7 2 . 1 . . . . Communications Jammed . | . . . . . . . . . . . . . Distress Signals . | . . . . . . . . . . . . . Times Spotted 119 | . 29 2 . . 38 8 2 12 1 4 16 7 Peak Tracking Total 12 | . 4 3 . . 5 2 1 6 1 7 12 6 Tactical Retreats 10 | . 3 . . . 3 . . 3 . . . 1 Traps | -11 -10 -10 -10 -9 -8 -7 -6 -5 -5 -5 -5 -4 ------- Run | Scr Mat Min Exi Min Mat Fac Fac Fac Upp Upp War Pro Traps Triggered 5 | . 4 . . . 1 . . . . . . . Indirectly . | . . . . . . . . . . . . . Trap Hack Attempts . | . . . . . . . . . . . . . Triggered . | . . . . . . . . . . . . . Disarmed . | . . . . . . . . . . . . . Reprogrammed . | . . . . . . . . . . . . . Reused . | . . . . . . . . . . . . . Traps Extracted . | . . . . . . . . . . . . . Installed . | . . . . . . . . . . . . . Triggered 11 | . . . . . . . . . . . 10 1 Machines | -11 -10 -10 -10 -9 -8 -7 -6 -5 -5 -5 -5 -4 ---------- Run | Scr Mat Min Exi Min Mat Fac Fac Fac Upp Upp War Pro Machines Disabled 3 | . . 1 . . 1 . . . . . 1 . Max in Single Turn 1 | . . 1 . . 1 . . . . . 1 . Garrison Access 2 | . . . . . 1 1 . . . . . . Machines Sabotaged . | . . . . . . . . . . . . . Garrisons Compromised . | . . . . . . . . . . . . . Overloaded Fab Kills . | . . . . . . . . . . . . . Fab Network Shutdowns . | . . . . . . . . . . . . . Hacking | -11 -10 -10 -10 -9 -8 -7 -6 -5 -5 -5 -5 -4 --------- Run | Scr Mat Min Exi Min Mat Fac Fac Fac Upp Upp War Pro Machines Accessed 24 | . 5 . 2 . 9 1 3 . . . 4 . Terminals 14 | . 5 . . . 6 . 3 . . . . . Fabricators . | . . . . . . . . . . . . . Repair Stations . | . . . . . . . . . . . . . Recycling Units 2 | . . . . . 2 . . . . . . . Scanalyzers . | . . . . . . . . . . . . . Garrison Access 2 | . . . . . 1 1 . . . . . . Total Hacks 66 | . 18 . 5 . 25 1 10 . . . 7 . Successful 46 | . 12 . 5 . 16 1 5 . . . 7 . Failed 19 | . 5 . . . 9 . 5 . . . . . Catastrophic 1 | . . . . . . . 1 . . . . . Database Lockouts 1 | . 1 . . . . . . . . . . . Manual 40 | . 19 . 1 . 11 1 7 . . . 1 . Terminals 50 | . 18 . . . 22 . 10 . . . . . Fabricators . | . . . . . . . . . . . . . Repair Stations . | . . . . . . . . . . . . . Recycling Units 2 | . . . . . 2 . . . . . . . Scanalyzers . | . . . . . . . . . . . . . Garrison Access 2 | . . . . . 1 1 . . . . . . Terminal Hacks 29 | . 7 . 5 . 7 . 3 . . . 7 . Record 10 | . . . 4 . 1 . . . . . 5 . Robot Analysis 3 | . 2 . . . 1 . . . . . . . Prototype ID Bank 2 | . 1 . . . 1 . . . . . . . Open Door 2 | . . . . . . . . . . . 2 . Branch Access Points 2 | . 1 . . . . . 1 . . . . . Unreport Threat 4 | . 1 . . . 3 . . . . . . . Locate Traps 4 | . 1 . . . 1 . 2 . . . . . Hauler Manifests 1 | . 1 . . . . . . . . . . . EX-Prototype ID Bank 1 | . . . 1 . . . . . . . . . Fabricator Hacks . | . . . . . . . . . . . . . Repair Station Hacks . | . . . . . . . . . . . . . Recycling Unit Hacks 1 | . . . . . 1 . . . . . . . Report Inventory 1 | . . . . . 1 . . . . . . . Scanalyzer . | . . . . . . . . . . . . . Garrison Access Hacks 1 | . . . . . 1 . . . . . . . Seal Access 1 | . . . . . 1 . . . . . . . Unauthorized Hacks 15 | . 5 . . . 7 1 2 . . . . . Terminals 13 | . 5 . . . 6 . 2 . . . . . Botnet 12 | . 4 . . . 6 . 2 . . . . . Operators 1 | . 1 . . . . . . . . . . . Fabricators . | . . . . . . . . . . . . . Repair Stations . | . . . . . . . . . . . . . Recycling Units 1 | . . . . . 1 . . . . . . . Tunnel 1 | . . . . . 1 . . . . . . . Scanalyzers . | . . . . . . . . . . . . . Garrison Access 1 | . . . . . . 1 . . . . . . Jam 1 | . . . . . . 1 . . . . . . Data Cores Recovered . | . . . . . . . . . . . . . Used . | . . . . . . . . . . . . . Hacking Detections 12 | . 3 . . . 6 . 3 . . . . . Full Trace Events 4 | . 1 . . . 2 . 1 . . . . . Feedback Events . | . . . . . . . . . . . . . Feedback Blocked . | . . . . . . . . . . . . . Robot Schematics Acquired . | . . . . . . . . . . . . . Robots Built . | . . . . . . . . . . . . . Matter . | . . . . . . . . . . . . . Time . | . . . . . . . . . . . . . Total Robot Build Rating . | . . . . . . . . . . . . . Part Schematics Acquired . | . . . . . . . . . . . . . Parts Built . | . . . . . . . . . . . . . Matter . | . . . . . . . . . . . . . Time . | . . . . . . . . . . . . . Total Part Build Rating . | . . . . . . . . . . . . . Parts Repaired . | . . . . . . . . . . . . . Time . | . . . . . . . . . . . . . Parts Recycled . | . . . . . . . . . . . . . Recycled Matter . | . . . . . . . . . . . . . Retrieved Matter . | . . . . . . . . . . . . . Retrieved Components . | . . . . . . . . . . . . . Parts Scanalyzed . | . . . . . . . . . . . . . Part Schematics Acquired . | . . . . . . . . . . . . . Parts Damaged . | . . . . . . . . . . . . . Bothacking | -11 -10 -10 -10 -9 -8 -7 -6 -5 -5 -5 -5 -4 ------------ Run | Scr Mat Min Exi Min Mat Fac Fac Fac Upp Upp War Pro Used RIF Installer . | . . . . . . . . . . . . . Robots Hacked . | . . . . . . . . . . . . . Non-combat . | . . . . . . . . . . . . . Combat . | . . . . . . . . . . . . . Robot Hacks Applied . | . . . . . . . . . . . . . Relay Couplers Released . | . . . . . . . . . . . . . Robots Rewired . | . . . . . . . . . . . . . Allies Hacked . | . . . . . . . . . . . . . Hacks Repelled . | . . . . . . . . . . . . . Allies | -11 -10 -10 -10 -9 -8 -7 -6 -5 -5 -5 -5 -4 -------- Run | Scr Mat Min Exi Min Mat Fac Fac Fac Upp Upp War Pro Total Allies . | . . . . . . . . . . . . . Largest Group . | . . . . . . . . . . . . . Highest-Rated Group . | . . . . . . . . . . . . . Highest-Rated Ally . | . . . . . . . . . . . . . Total Orders . | . . . . . . . . . . . . . Ally Attacks . | . . . . . . . . . . . . . Total Damage . | . . . . . . . . . . . . . Kills . | . . . . . . . . . . . . . Allies Corrupted . | . . . . . . . . . . . . . Allies Melted . | . . . . . . . . . . . . . Intel | -11 -10 -10 -10 -9 -8 -7 -6 -5 -5 -5 -5 -4 ------- Run | Scr Mat Min Exi Min Mat Fac Fac Fac Upp Upp War Pro Robot Analysis Total 3 | . 2 . . . 1 . . . . . . . Derelict Logs Recovered 3 | . . 1 . . . . . . 2 . . . Drone Launches . | . . . . . . . . . . . . . Drone Recoveries . | . . . . . . . . . . . . . Exploration | -11 -10 -10 -10 -9 -8 -7 -6 -5 -5 -5 -5 -4 ------------- Run | Scr Mat Min Exi Min Mat Fac Fac Fac Upp Upp War Pro Turns Passed 6364 | 63 1363 254 500 71 2263 497 258 331 67 133 440 124 Spaces Moved 5659 | 50 935 197 456 66 1120 260 524 607 166 324 761 193 Core 18 | 13 . . . . . . . 1 . . . 4 Treads 768 | . 63 . . . 537 168 . . . . . . Legs . | . . . . . . . . . . . . . Wheels 2211 | 37 872 197 456 66 583 . . . . . . . Hover 428 | . . . . . . . . . . . 249 179 Flight 2234 | . . . . . . 92 524 606 166 324 512 10 Fastest Speed 34 | 50 80 110 100 100 100 37 37 37 40 40 34 46 Average Speed 88 | 87 112 115 107 100 144 133 38 37 40 40 52 55 Slowest Speed 385 | 150 200 120 110 100 200 197 117 150 40 40 120 385 Overloaded Moves 2 | . . . . . . . . . . . 2 . Propulsion Burnouts . | . . . . . . . . . . . . . Robots Hopped 9 | . . . . . . 1 . 5 1 2 . . Cave-ins Triggered 1 | . . . . . . . . 1 . . . . Exploration Rate (%) 43 | 4 92 36 72 19 81 8 18 21 36 50 96 35 Regions Visited 12 Branch Regions 7 Pre-discovered Areas 4 | . . . 1 . 1 . . . 2 . . . Known Exits Taken 3 | . 1 . . . . 1 1 . . . . . Unknown Exits Taken 9 | 1 . 1 1 1 1 . . 1 1 1 1 . Scrap Searched 4 | . . . . 1 . . . . . 3 . . Spaces Dug 35 | . . . . . . . . 35 . . . . Terrain Destroyed 165 | 2 . 31 . . 49 . . 80 . . 1 2 Melee . | . . . . . . . . . . . . . Projectile 3 | . . . . . . . . . . . 1 2 AOE 162 | 2 . 31 . . 49 . . 80 . . . . Terrain Rammed . | . . . . . . . . . . . . . Walls Destroyed . | . . . . . . . . . . . . . Machines Disabled . | . . . . . . . . . . . . . Actions | -11 -10 -10 -10 -9 -8 -7 -6 -5 -5 -5 -5 -4 --------- Run | Scr Mat Min Exi Min Mat Fac Fac Fac Upp Upp War Pro Total 6674 | 64 1118 210 470 70 1614 374 574 685 164 324 799 208 Wait 537 | . 46 1 . 4 355 60 26 43 . . 1 1 Move 5628 | 49 934 196 455 65 1119 257 523 595 163 319 760 193 Hop 9 | . . . . . . 1 . 5 1 2 . . Pick Up 68 | 7 22 1 4 . 18 2 4 3 . . 7 . Fast Attach 60 | 6 9 . . . 16 3 6 7 . 2 11 . Attach 31 | . 8 . . . 3 7 1 2 . . 2 8 Detach 18 | . 4 . . . 2 4 . 2 . . 4 2 Swap 24 | . 8 3 1 1 5 2 1 1 . . 2 . Drop 91 | 1 14 2 10 . 20 16 8 7 . 1 11 1 Fire 184 | 1 68 7 . . 58 22 5 19 . . 1 3 Melee 23 | . 5 . . . 18 . . . . . . . Ram . | . . . . . . . . . . . . . Kick . | . . . . . . . . . . . . . Crush . | . . . . . . . . . . . . . Escape Stasis 1 | . . . . . . . . 1 . . . . Rewire . | . . . . . . . . . . . . . Trap . | . . . . . . . . . . . . . Miscellaneous . | . . . . . . . . . . . . . Route ------- -11/Scrapyard -10/Materials (discovered 4 exits: [*Mat x3] / *Min) -10/Mines (discovered 2 exits: [*Mat] / *Exi) -10/Exiles (discovered 2 exits: [*Min x2]) -9/Mines -8/Materials (discovered 3 exits: *Fac x3) -7/Factory -6/Factory (discovered 3 exits: *Fac / Low x2) -5/Factory -5/Upper Caves -5/Upper Caves -5/Warlord -4/Proximity Caves History --------- Turn | Location | Event 17 | -11/Scrapyard | Discovered new exit (range 15) 64 | -11/Scrapyard | Entered Materials 116 | -10/Materials | Discovered new exit (range 14) 317 | -10/Materials | Build established: Mutant 368 | -10/Materials | Lost 5 parts (1p2n2w) 453 | -10/Materials | Core integrity fell below 50% 515 | -10/Materials | Discovered new exit (range 3) 601 | -10/Materials | Discovered new exit (range 7) 912 | -10/Materials | Identified exit to Mines 1070 | -10/Materials | Central database locked down 1427 | -10/Materials | Entered Mines 1443 | -10/Mines | Learned Materials emergency access door positions 1594 | -10/Mines | Discovered new exit (range 5) 1675 | -10/Mines | Deemed a non-threat by the Exiles lab entrance 1676 | -10/Mines | Discovered new exit (range 5) 1681 | -10/Mines | Entered Exiles 1697 | -10/Exiles | Discovered new exit (range 14) 1713 | -10/Exiles | Met 8R-AWN 1730 | -10/Exiles | Met EX-HEX 1796 | -10/Exiles | Met EX-DEC 1821 | -10/Exiles | Learned location of Zion (-7) 1889 | -10/Exiles | Discovered new exit (range 12) 1964 | -10/Exiles | Met EX-BIN 2033 | -10/Exiles | Aligned with FarCom system 2034 | -10/Exiles | Given EX-Vault access code 2060 | -10/Exiles | Opened EX-Vault 2078 | -10/Exiles | Found Army-in-a-Box 2080 | -10/Exiles | Found YOLO Cannon 2085 | -10/Exiles | Found Chronowheel 2107 | -10/Exiles | Warned to stay clear of 0b10 Research branches 2181 | -10/Exiles | Stole three prototypes: Army-in-a-Box, Chronowheel, YOLO Cannon 2181 | -10/Exiles | Entered Mines 2238 | -9/Mines | Discovered new exit (range 15) 2252 | -9/Mines | Entered Materials 2252 | -8/Materials | Evolved 4 slots: Utility x4 2882 | -8/Materials | Lost 3 parts (1n1u1w) 2913 | -8/Materials | Discovered new exit (range 18) 3241 | -8/Materials | Discovered new exit (range 22) 3314 | -8/Materials | Build established: Hacker-Mutant 3775 | -8/Materials | Build established: Hauler-Mutant 3915 | -8/Materials | Discovered new exit (range 4) 4515 | -8/Materials | Entered Factory 4515 | -7/Factory | Evolved 2 slots: Utility x2 4517 | -7/Factory | FarCom data flow suspended 5008 | -7/Factory | Discovered new exit (range 6) 5010 | -7/Factory | Identified exit to Factory 5012 | -7/Factory | Entered another Factory area 5012 | -6/Factory | Evolved 2 slots: Utility x2 5190 | -6/Factory | Build established: Hacker-Scout 5200 | -6/Factory | Discovered new exit (range 19) 5221 | -6/Factory | Identified exit to Factory 5228 | -6/Factory | Identified exit to Lower Caves 5270 | -6/Factory | Entered another Factory area 5270 | -5/Factory | Evolved 2 slots: Utility x2 5400 | -5/Factory | Spotted B-75 Beast 5477 | -5/Factory | Crushed by falling debris 5599 | -5/Factory | Discovered new exit (range 6) 5601 | -5/Factory | Entered Upper Caves 5619 | -5/Upper Caves | Learned location of Warlord (-5) 5660 | -5/Upper Caves | Discovered new exit (range 20) 5668 | -5/Upper Caves | Entered another Upper Caves area 5679 | -5/Upper Caves | Encountered a Warlord checkpoint 5766 | -5/Upper Caves | Build established: Hacker-Mutant 5784 | -5/Upper Caves | Attracted the attention of an 0b10 checkpoint 5799 | -5/Upper Caves | Ambushed by wild Derelicts 5799 | -5/Upper Caves | Discovered new exit (range 6) 5801 | -5/Upper Caves | Entered Warlord 5812 | -5/Warlord | Discovered new exit (range 12) 5824 | -5/Warlord | System corruption cleaned by Quarantine Array 5855 | -5/Warlord | Met Warlord 5880 | -5/Warlord | Warlord's base attacked by MAIN.C 5967 | -5/Warlord | Found Prototype Energy Gun 5967 | -5/Warlord | Identified Vortex Shotgun 5970 | -5/Warlord | Found Prototype Energy Gun 5970 | -5/Warlord | Identified Vortex Rail 6092 | -5/Warlord | Found Prototype Hackware 6092 | -5/Warlord | Identified System Mapper 6112 | -5/Warlord | Found Prototype Reactor 6114 | -5/Warlord | Found Prototype Device 6116 | -5/Warlord | Identified Exp. Cloaking Device 6210 | -5/Warlord | Opened side exit 6221 | -5/Warlord | Spotted Striker 6228 | -5/Warlord | Spotted Striker 6230 | -5/Warlord | Warlord forces counterattacked 6241 | -5/Warlord | Entered Proximity Caves 6325 | -4/Proximity Caves | Spotted B-86 Titan 6338 | -4/Proximity Caves | Core integrity fell below 50% 6361 | -4/Proximity Caves | Activated Chronowheel 6363 | -4/Proximity Caves | Core integrity fell below 20% 6365 | -4/Proximity Caves | Destroyed by B-86 Titan with Railgun Last Messages --------------- 06337_ Knocked back. 06337_ Slug penetrates Wall. 06340_ Penetrated by Slug. 06347_ Nuclear Pulse Array destroyed. 06348_ Knocked back. 06352_ Field Propulsion Drive destroyed. 06355_ Knocked back. 06356_ Imp. Medium Armor Plating destroyed. 06358_ YOLO Cannon destroyed. 06361_ Adv. Hacking Suite destroyed. 06361_ Spacetime feels off. 06361_ Chronowheel destroyed. 06361_ Spacetime feels normal again. 06361_ Hacking Suite destroyed. 06361_ Knocked back. 06361_ Slug penetrates G-67 Veteran. 06362_ Cld. Impulse Thruster destroyed. 06362_ Dropped Hcp. Storage Unit. 06365_ Knocked back. 06365_ Penetrated by Slug. Map ----- +----------------------------------------------------+ | | | | | | | | | | | | | | | ?????????????????????????????????????????????????? | | ?????????????????????????????????????????????????? | | ?????????????????????????????????????????????????? | | ?????????????????????????????????????????????????? | | ?????????????????????????????????????????????????? | | ?????????????????????????????????????????????????? | | ?????????????????????????????????????????????????? | | ?????????????????????????????????????????????????? | | ?????????????????????????????????????????????????? | | ?????????????????????????????????????????????????? | | ?????????????????????????????????????????????????? | | ????????????????????########?????????????????????? | | ????????????????????# #?????????????????????? | | ????????????????????# #####?????????????????? | | ????????????????????# BB##;;#???###???????????? | | ##?????????????????## BB ! ## ## ###?????????? | | ###????###?####? # ;;;; ;#####?????? | | ##???# ## ## # g g;## #?????? | | #???# @ ggg ## ##????? | | ##??# ;;##### ;;# ##???? | | ##?## #### ##??# ## # #???? | | ##### #???### #?## ### #???? | | ##### ## #???????## ##?# ## ##???? | | #??## #??#####??## #??# #????? | | ### ##?## #?## ##?# ##???? | | ## #?# #?? ##### #???? | | ### #??# ##?# ##?# ##???? | | ## " #???# #?# ####### #????? | | # "" ##### ### #???## #????? | | ## "" #?????# ##????? | | ##### "" ####?????# #?????? | | ?### "" " #### ######???# #?????? | | ## "" "" ##?# ## ### ##??# #?????? | | # " """ #### ####?## #??# ###???? | | " ### ##?####### #??# #???? | | "" #?## ### #???## #?## #???? | | ## " ##??# ##???##### ##???? | | # ## " ##??## ####??## ##????? | | ## ?# ##???# #### ##????? | | ?## #????# ## ##???? | | ??## ### #????## ###### #???? | | ???# ??# #?????#####????# #???? | | ???# ??# ##?????????????# ## #???? | +----------------------------------------------------+ Best States ------------- Heat Dissipation 41 Energy Generation 23 Energy Capacity 280 Matter Stores 300 Matter Capacity 300 Sight Range 22 Robot Scan Range 20 Terrain Scan Density 210 ECM Strength 3 Power Amplification 40 Additional Mass Support 6 Armor Coverage 225 Resistance: TH 10 Evasion (%) 68 Target Analysis 6 Recoil Reduction 3 Offensive Hacking 44 Defensive Hacking 10 Item Schematics ----------------- None Robot Schematics ------------------ None Fabricated ------------ Nothing Alien Tech Used ----------------- None Achievements -------------- Brute Force Challenges ------------ None Game ------ Seed LauncherLinkedWand Manual? 0 Play Time 02:10:29 Cumulative 81.5 hours Start 2021.12.06 @ 22:46:19 End 2021.12.07 @ 14:37:03 Sessions 2 Manual Loads 0 Difficulty Rogue Special Mode None Game No. 25 Rogue 25 Adventurer 0 Explorer 0 Win Type - Total 1 Types 1/0/0/0/0/0/0/0/0 Lore% 36 Gallery% 52 Achievement% 39 Wizard Run 0 Options --------- ASCII 1 Keyboard 1 Movement Numpad Keybinds 0 Fullscreen 1 Font 36/Smallcaps Map View 76x50 Tactical HUD 1 Map Filters NONE Filters NONE Steam 1 RUN: 413ec91f-113c-4801-91ec-5748ab96ac60